fUSD/lending_fUSD_20240318
["ID","MTS","AMOUNT","RATE_DAILY","PERIOD"]
[319465351,1710797447398,-500.0,0.00021917,2]
[319465352,1710797447407,-500.0,0.00021917,2]
[319465353,1710797447416,-500.0,0.00021917,2]
[319465354,1710797447426,-500.0,0.00021917,2]
[319465355,1710797447436,-500.0,0.00021917,2]
[319465356,1710797447445,-500.0,0.00021917,2]
[319465357,1710797447454,-500.0,0.00021917,2]
[319465358,1710797447463,-570.48,0.00021917,2]
[319465359,1710797447472,-500.0,0.00021917,2]
[319465360,1710797447481,-500.0,0.00021917,2]
[319465361,1710797447490,-500.0,0.00021917,2]
[319465362,1710797447499,-647.13,0.00021917,2]
[319465363,1710797447509,-500.0,0.00021917,2]
[319465364,1710797447518,-627.86,0.00021917,2]
[319465365,1710797447527,-504.96722378,0.00021917,2]
[319465366,1710797447536,-500.0,0.00021917,2]
[319465367,1710797447546,-400.24014328,0.00021917,2]
[319465368,1710797447555,-500.0,0.00021917,2]
[319465369,1710797447564,-500.0,0.00021917,2]
[319465370,1710797447573,-500.0,0.00021917,2]
[319465371,1710797447582,-500.0,0.00021917,2]
[319465372,1710797447591,-528.57,0.00021917,2]
[319465373,1710797447600,-500.0,0.00021917,2]
[319465374,1710797447609,-500.0,0.00021917,2]
[319465375,1710797447618,-500.0,0.00021917,2]
[319465376,1710797447627,-500.0,0.00021917,2]
[319465377,1710797447636,-500.0,0.00021917,2]
[319465378,1710797447645,-2198.14,0.00021917,2]
[319465379,1710797447654,-500.0,0.00021917,2]
[319465380,1710797447664,-500.0,0.00021917,2]
[319465381,1710797447673,-500.0,0.00021917,2]
[319465382,1710797447682,-2238.78,0.00021917,2]
[319465383,1710797447691,-535.66,0.00021917,2]
[319465384,1710797447701,-500.0,0.00021917,2]
[319465385,1710797447710,-500.0,0.00021917,2]
[319465386,1710797447720,-500.0,0.00021917,2]
[319465387,1710797447729,-500.0,0.00021917,2]
[319465388,1710797447738,-500.0,0.00021917,2]
[319465389,1710797447747,-1352.32,0.00021917,2]
[319465390,1710797447757,-500.0,0.00021917,2]
[319465391,1710797447766,-500.0,0.00021917,2]
[319465392,1710797447775,-500.0,0.00021917,2]
[319465393,1710797447784,-1554.09,0.00021917,2]
[319465394,1710797447795,-500.0,0.00021917,2]
[319465395,1710797447804,-792.28,0.00021917,2]
[319465396,1710797447813,-500.0,0.00021917,2]
[319465397,1710797447823,-500.0,0.00021917,2]
[319465398,1710797447832,-500.0,0.00021917,2]
[319465399,1710797447841,-562.66,0.00021917,2]
[319465400,1710797447850,-500.0,0.00021917,2]
[319465401,1710797447860,-682.07,0.00021917,2]
[319465402,1710797447869,-500.0,0.00021917,2]
[319465403,1710797447878,-500.0,0.00021917,2]
[319465404,1710797447888,-500.0,0.00021917,2]
[319465405,1710797447898,-507.69,0.00021917,2]
[319465406,1710797447909,-2213.95,0.00021917,2]
[319465407,1710797447918,-500.0,0.00021917,2]
[319465408,1710797447928,-644.11,0.00021917,2]
[319465409,1710797447937,-1184.91,0.00021917,2]
[319465410,1710797447946,-500.0,0.00021917,2]
[319465411,1710797447955,-752.74,0.00021917,2]
[319465412,1710797447964,-1588.19,0.00021917,2]
[319465413,1710797447973,-500.0,0.00021917,2]
[319465414,1710797447985,-512.62,0.00021917,2]
[319465415,1710797447995,-500.0,0.00021917,2]
[319465416,1710797448004,-500.0,0.00021917,2]
[319465417,1710797448013,-1287.44,0.00021917,2]
[319465418,1710797448022,-1128.19,0.00021917,2]
[319465419,1710797448032,-500.0,0.00021917,2]
[319465420,1710797448041,-1777.34,0.00021917,2]
[319465421,1710797448053,-2424.39,0.00021917,2]
[319465422,1710797448062,-500.0,0.00021917,2]
[319465423,1710797448071,-2809.45,0.00021917,2]
[319465424,1710797448081,-500.0,0.00021917,2]
[319465425,1710797448090,-500.0,0.00021917,2]
[319465426,1710797448099,-500.0,0.00021917,2]
[319465427,1710797448109,-500.0,0.00021917,2]
[319465428,1710797448118,-500.0,0.00021917,2]
[319465429,1710797448127,-500.0,0.00021917,2]
[319465430,1710797448136,-500.0,0.00021917,2]
[319465431,1710797448146,-500.0,0.00021917,2]
[319465432,1710797448155,-500.0,0.00021917,2]
[319465433,1710797448164,-500.0,0.00021917,2]
[319465434,1710797448173,-603.02,0.00021917,2]
[319465435,1710797448182,-1996.14,0.00021917,2]
[319465436,1710797448191,-632.44,0.00021917,2]
[319465437,1710797448201,-500.0,0.00021917,2]
[319465438,1710797448210,-2517.63,0.00021917,2]
[319465439,1710797448220,-500.0,0.00021917,2]
[319465440,1710797448229,-500.0,0.00021917,2]
[319465441,1710797448238,-3122.57,0.00021917,2]
[319465442,1710797448247,-500.0,0.00021917,2]
[319465443,1710797448257,-1008.98,0.00021917,2]
[319465444,1710797448267,-500.0,0.00021917,2]
[319465445,1710797448278,-500.0,0.00021917,2]
[319465446,1710797448287,-500.0,0.00021917,2]
[319465447,1710797448299,-2916.76,0.00021917,2]
[319465448,1710797448308,-500.0,0.00021917,2]
[319465449,1710797448317,-500.0,0.00021917,2]
[319465450,1710797448326,-661.41,0.00021917,2]
[319465451,1710797448335,-500.0,0.00021917,2]
[319465452,1710797448344,-785.02,0.00021917,2]
[319465453,1710797448353,-683.75,0.00021917,2]
[319465454,1710797448363,-500.0,0.00021917,2]
[319465455,1710797448372,-500.0,0.00021917,2]
[319465456,1710797448382,-560.51,0.00021917,2]
[319465457,1710797448391,-914.57,0.00021917,2]
[319465458,1710797448400,-500.0,0.00021917,2]
[319465459,1710797448410,-500.0,0.00021917,2]
[319465460,1710797448419,-500.0,0.00021917,2]
[319465461,1710797448429,-519.15789718,0.00021917,2]
[319465462,1710797448439,-500.0,0.00021917,2]
[319465463,1710797448449,-1065.01,0.00021917,2]
[319465464,1710797448458,-500.0,0.00021917,2]
[319465465,1710797448468,-500.0,0.00021917,2]
[319465466,1710797448477,-500.0,0.00021917,2]
[319465467,1710797448487,-500.0,0.00021917,2]
[319465468,1710797448497,-524.16,0.00021917,2]
[319465469,1710797448506,-1072.86,0.00021917,2]
[319465470,1710797448516,-500.0,0.00021917,2]
[319465471,1710797448525,-500.0,0.00021917,2]
[319465472,1710797448534,-1815.51,0.00021917,2]
[319465473,1710797448545,-570.95,0.00021917,2]
[319465474,1710797448554,-500.0,0.00021917,2]
[319465475,1710797448563,-630.15,0.00021917,2]
[319465476,1710797448572,-500.0,0.00021917,2]
[319465477,1710797448581,-742.92,0.00021917,2]
[319465478,1710797448590,-571.11424914,0.00021917,2]
[319465479,1710797448599,-500.0,0.00021917,2]
[319465480,1710797448608,-570.31,0.00021917,2]
[319465481,1710797448618,-500.0,0.00021917,2]
[319465482,1710797448627,-500.0,0.00021917,2]
[319465483,1710797448637,-2118.11,0.00021917,2]
[319465484,1710797448646,-500.0,0.00021917,2]
[319465485,1710797448655,-500.0,0.00021917,2]
[319465486,1710797448664,-676.99,0.00021917,2]
[319465487,1710797448673,-1666.21,0.00021917,2]
[319465488,1710797448682,-217.596074,0.00021917,2]
[319465489,1710797448692,-217.596074,0.00021917,2]
[319465490,1710797448701,-217.596074,0.00021917,2]
[319465491,1710797448710,-670.41,0.00021917,2]
[319465492,1710797448885,-873.76,0.00021917,2]
[319465493,1710797448894,-217.596074,0.00021917,2]
[319465494,1710797448906,-500.0,0.00021917,2]
[319465495,1710797448915,-217.596074,0.00021917,2]
[319465496,1710797448924,-500.0,0.00021917,2]
[319465497,1710797448933,-217.596074,0.00021917,2]
[319465498,1710797448943,-500.0,0.00021917,2]
[319465499,1710797448952,-500.0,0.00021917,2]
[319465500,1710797448961,-1954.26,0.00021917,2]
[319465501,1710797448970,-500.0,0.00021917,2]
[319465502,1710797448980,-955.91,0.00021917,2]
[319465503,1710797448989,-500.0,0.00021917,2]
[319465504,1710797448998,-736.03,0.00021917,2]
[319465505,1710797449008,-500.0,0.00021917,2]
[319465506,1710797449018,-500.0,0.00021917,2]
[319465507,1710797449027,-500.0,0.00021917,2]
[319465508,1710797449036,-500.0,0.00021917,2]
[319465509,1710797449045,-2494.23,0.00021917,2]
[319465510,1710797449055,-636.04,0.00021917,2]
[319465511,1710797449065,-2838.46,0.00021917,2]
[319465512,1710797449075,-1104.49,0.00021917,2]
[319465513,1710797449085,-500.0,0.00021917,2]
[319465514,1710797449095,-734.38,0.00021917,2]
[319465515,1710797449105,-752.2,0.00021917,2]
[319465516,1710797449114,-500.0,0.00021917,2]
[319465517,1710797449123,-1714.53,0.00021917,2]
[319465518,1710797449132,-500.0,0.00021917,2]
[319465519,1710797449143,-500.0,0.00021917,2]
[319465520,1710797449154,-1405.97,0.00021917,2]
[319465521,1710797449164,-2647.89,0.00021917,2]
[319465522,1710797449174,-2208.4,0.00021917,2]
[319465523,1710797449182,-1683.99,0.00021917,2]
[319465524,1710797449191,-501.6187738,0.00021917,2]
[319465525,1710797449200,-500.0,0.00021917,2]
[319465526,1710797449209,-500.0,0.00021917,2]
[319465527,1710797449219,-500.0,0.00021917,2]
[319465528,1710797449229,-703.52,0.00021917,2]
[319465529,1710797449238,-730.62,0.00021917,2]
[319465530,1710797449247,-1404.91,0.00021917,2]
[319465531,1710797449256,-500.0,0.00021917,2]
[319465532,1710797449265,-500.0,0.00021917,2]
[319465533,1710797449273,-889.58,0.00021917,2]
[319465534,1710797449282,-177.18463114,0.00021917,2]
[319465535,1710797449292,-500.0,0.00021917,2]
[319465536,1710797449304,-500.0,0.00021917,2]
[319465537,1710797449313,-500.0,0.00021917,2]
[319465538,1710797449322,-541.77,0.00021917,2]
[319465539,1710797449331,-500.0,0.00021917,2]
[319465540,1710797449340,-500.0,0.00021917,2]
[319465541,1710797449349,-500.0,0.00021917,2]
[319465542,1710797449358,-500.0,0.00021917,2]
[319465543,1710797449367,-864.03,0.00021917,2]
[319465544,1710797449377,-616.74,0.00021917,2]
[319465545,1710797449386,-1471.1,0.00021917,2]
[319465546,1710797449395,-500.0,0.00021917,2]
[319465547,1710797449404,-1318.26,0.00021917,2]
[319465548,1710797449413,-1057.75,0.00021917,2]
[319465549,1710797449423,-586.45,0.00021917,2]
[319465550,1710797449432,-678.17,0.00021917,2]
[319465551,1710797449441,-500.0,0.00021917,2]
[319465552,1710797449451,-636.57,0.00021917,2]
[319465553,1710797449460,-1016.53,0.00021917,2]
[319465554,1710797449470,-500.0,0.00021917,2]
[319465555,1710797449480,-500.0,0.00021917,2]
[319465556,1710797449489,-753.38,0.00021917,2]
[319465557,1710797449498,-500.0,0.00021917,2]
[319465558,1710797449508,-1306.43,0.00021917,2]
[319465559,1710797449517,-707.41,0.00021917,2]
[319465560,1710797449526,-886.27,0.00021917,2]
[319465561,1710797449535,-500.0,0.00021917,2]
[319465562,1710797449545,-627.32342015,0.00021917,2]
[319465563,1710797449556,-620.04,0.00021917,2]
[319465564,1710797449565,-501.72557647,0.00021917,2]
[319465565,1710797449575,-500.0,0.00021917,2]
[319465566,1710797449584,-500.0,0.00021917,2]
[319465567,1710797449593,-500.0,0.00021917,2]
[319465568,1710797449602,-500.0,0.00021917,2]
[319465569,1710797449612,-1478.67,0.00021917,2]
[319465570,1710797449621,-500.0,0.00021917,2]
[319465571,1710797449631,-500.0,0.00021917,2]
[319465572,1710797449640,-500.0,0.00021917,2]
[319465573,1710797449649,-2090.15,0.00021917,2]
[319465574,1710797449658,-500.0,0.00021917,2]
[319465575,1710797449667,-1187.01,0.00021917,2]
[319465576,1710797449677,-878.9,0.00021917,2]
[319465577,1710797449686,-501.66210762,0.00021917,2]
[319465578,1710797449695,-500.0,0.00021917,2]
[319465579,1710797449704,-853.51,0.00021917,2]
[319465580,1710797449713,-500.0,0.00021917,2]
[319465581,1710797449722,-500.0,0.00021917,2]
[319465582,1710797449731,-1804.65,0.00021917,2]
[319465583,1710797449740,-738.08,0.00021917,2]
[319465584,1710797449749,-958.67,0.00021917,2]
[319465585,1710797449757,-500.0,0.00021917,2]
[319465586,1710797449766,-500.0,0.00021917,2]
[319465587,1710797449775,-998.75,0.00021917,2]
[319465588,1710797449784,-1206.83,0.00021917,2]
[319465589,1710797449793,-500.0,0.00021917,2]
[319465590,1710797449804,-696.17,0.00021917,2]
[319465591,1710797449813,-500.0,0.00021917,2]
[319465592,1710797449822,-534.19,0.00021917,2]
[319465593,1710797449831,-1170.4,0.00021917,2]
[319465594,1710797449840,-500.0,0.00021917,2]
[319465595,1710797449849,-2002.15,0.00021917,2]
[319465596,1710797449858,-500.0,0.00021917,2]
[319465597,1710797449867,-514.94,0.00021917,2]
[319465598,1710797449876,-500.0,0.00021917,2]
[319465599,1710797449887,-500.0,0.00021917,2]
[319465600,1710797449896,-1315.16,0.00021917,2]
[319465601,1710797449908,-1726.2,0.00021917,2]
[319465602,1710797449917,-500.0,0.00021917,2]
[319465603,1710797449925,-952.49,0.00021917,2]
[319465604,1710797449936,-671.74,0.00021917,2]
[319465605,1710797449957,-677.36,0.00021917,2]
[319465606,1710797449976,-500.0,0.00021917,2]
[319465607,1710797449995,-500.0,0.00021917,2]
[319465608,1710797450014,-500.0,0.00021917,2]
[319465609,1710797450031,-256.716951,0.00021917,2]
[319465610,1710797450050,-1169.17,0.00021917,2]
[319465611,1710797450065,-1887.62,0.00021917,2]
[319465612,1710797450085,-300.0,0.00021917,2]
[319465613,1710797450104,-500.0,0.00021917,2]
[319465614,1710797450122,-500.0,0.00021917,2]
[319465615,1710797450143,-550.87,0.00021917,2]
[319465616,1710797450159,-500.0,0.00021917,2]
[319465617,1710797450175,-500.0,0.00021917,2]
[319465618,1710797450194,-500.0,0.00021917,2]
[319465619,1710797450207,-1467.66,0.00021917,2]
[319465620,1710797450222,-638.79,0.00021917,2]
[319465621,1710797450238,-500.0,0.00021917,2]
[319465622,1710797450254,-978.88,0.00021917,2]
[319465623,1710797450269,-500.0,0.00021917,2]
[319465624,1710797450290,-1174.74,0.00021917,2]
[319465625,1710797450305,-1320.59,0.00021917,2]
[319465626,1710797450321,-500.0,0.00021917,2]
[319465627,1710797450335,-1371.41,0.00021917,2]
[319465628,1710797450351,-1278.57,0.00021917,2]
[319465629,1710797450366,-500.0,0.00021917,2]
[319465630,1710797450382,-500.0,0.00021917,2]
[319465631,1710797450398,-500.0,0.00021917,2]
[319465632,1710797450414,-151.942928,0.00021917,2]
[319465633,1710797450430,-500.0,0.00021917,2]
[319465634,1710797450446,-500.0,0.00021917,2]
[319465635,1710797450461,-500.0,0.00021917,2]
[319465636,1710797450476,-1096.26,0.00021917,2]
[319465637,1710797450491,-500.0,0.00021917,2]
[319465638,1710797450506,-784.19,0.00021917,2]
[319465639,1710797450521,-500.0,0.00021917,2]
[319465640,1710797450536,-546.73,0.00021917,2]
[319465641,1710797450554,-570.75,0.00021917,2]
[319465642,1710797450569,-1323.73,0.00021917,2]
[319465643,1710797450585,-500.0,0.00021917,2]
[319465644,1710797450600,-396.45839576,0.00021917,2]
[319465645,1710797450616,-500.0,0.00021917,2]
[319465646,1710797450631,-786.88,0.00021917,2]
[319465647,1710797450647,-500.94,0.00021917,2]
[319465648,1710797450662,-151.0,0.00021917,2]
[319465649,1710797450677,-1376.98,0.00021917,2]
[319465650,1710797450692,-151.0,0.00021917,2]
[319465651,1710797450708,-151.0,0.00021917,2]
[319465652,1710797450723,-1512.14,0.00021917,2]
[319465653,1710797450739,-500.0,0.00021917,2]
[319465654,1710797450753,-500.0,0.00021917,2]
[319465655,1710797450769,-1078.34,0.00021917,2]
[319465656,1710797450784,-500.0,0.00021917,2]
[319465657,1710797450800,-500.0,0.00021917,2]
[319465658,1710797450815,-500.0,0.00021917,2]
[319465659,1710797450831,-881.22,0.00021917,2]
[319465660,1710797450847,-500.0,0.00021917,2]
[319465661,1710797450862,-500.0,0.00021917,2]
[319465662,1710797450878,-500.0,0.00021917,2]
[319465663,1710797450895,-500.0,0.00021917,2]
[319465664,1710797450913,-500.0,0.00021917,2]
[319465665,1710797450930,-500.0,0.00021917,2]
[319465666,1710797450947,-500.0,0.00021917,2]
[319465667,1710797450963,-1028.47,0.00021917,2]
[319465668,1710797450982,-500.0,0.00021917,2]
[319465669,1710797450999,-500.0,0.00021917,2]
[319465670,1710797451016,-500.0,0.00021917,2]
[319465671,1710797451032,-500.0,0.00021917,2]
[319465672,1710797451051,-500.0,0.00021917,2]
[319465673,1710797451067,-824.1,0.00021917,2]
[319465674,1710797451084,-151.0,0.00021917,2]
[319465675,1710797451100,-151.0,0.00021917,2]
[319465676,1710797451116,-631.7,0.00021917,2]
[319465677,1710797451132,-151.0,0.00021917,2]
[319465678,1710797451148,-500.0,0.00021917,2]
[319465679,1710797451163,-500.0,0.00021917,2]
[319465680,1710797451179,-151.0,0.00021917,2]
[319465681,1710797451194,-1946.73,0.00021917,2]
[319465682,1710797451210,-1700.64,0.00021917,2]
[319465683,1710797451225,-500.0,0.00021917,2]
[319465684,1710797451240,-500.0,0.00021917,2]
[319465685,1710797451256,-500.0,0.00021917,2]
[319465686,1710797451271,-557.58,0.00021917,2]
[319465687,1710797451287,-626.12,0.00021917,2]
[319465688,1710797451304,-500.0,0.00021917,2]
[319465689,1710797451321,-500.0,0.00021917,2]
[319465690,1710797451337,-500.0,0.00021917,2]
[319465691,1710797451352,-500.0,0.00021917,2]
[319465692,1710797451367,-500.0,0.00021917,2]
[319465693,1710797451383,-500.0,0.00021917,2]
[319465694,1710797451397,-500.0,0.00021917,2]
[319465695,1710797451412,-500.0,0.00021917,2]
[319465696,1710797451427,-500.0,0.00021917,2]
[319465697,1710797451443,-1868.87,0.00021917,2]
[319465698,1710797451458,-3273.76,0.00021917,2]
[319465699,1710797451473,-500.0,0.00021917,2]
[319465700,1710797451489,-500.0,0.00021917,2]
[319465701,1710797451504,-500.0,0.00021917,2]
[319465702,1710797451521,-500.0,0.00021917,2]
[319465703,1710797451537,-500.0,0.00021917,2]
[319465704,1710797451554,-1028.33,0.00021917,2]
[319465705,1710797451570,-500.0,0.00021917,2]
[319465706,1710797451585,-500.0,0.00021917,2]
[319465707,1710797451600,-1882.56,0.00021917,2]
[319465708,1710797451615,-500.0,0.00021917,2]
[319465709,1710797451631,-497.93072958,0.00021917,2]
[319465710,1710797451648,-500.0,0.00021917,2]
[319465711,1710797451664,-500.0,0.00021917,2]
[319465712,1710797451681,-837.68,0.00021917,2]
[319465713,1710797451698,-500.06,0.00021917,2]
[319465714,1710797451714,-1404.69,0.00021917,2]
[319465715,1710797451729,-500.0,0.00021917,2]
[319465716,1710797451745,-1747.28,0.00021917,2]
[319465717,1710797451955,-500.0,0.00021917,2]
[319465718,1710797452038,-356.89976474,0.00021917,2]
[319465719,1710797452050,-500.0,0.00021917,2]
[319465720,1710797452060,-500.0,0.00021917,2]
[319465721,1710797452074,-834.27,0.00021917,2]
[319465722,1710797452083,-500.0,0.00021917,2]
[319465723,1710797452093,-1582.91,0.00021917,2]
[319465724,1710797452103,-500.0,0.00021917,2]
[319465725,1710797452112,-1591.96,0.00021917,2]
[319465726,1710797452122,-500.0,0.00021917,2]
[319465727,1710797452131,-500.0,0.00021917,2]
[319465728,1710797452141,-500.0,0.00021917,2]
[319465729,1710797452151,-2665.76,0.00021917,2]
[319465730,1710797452161,-500.0,0.00021917,2]
[319465731,1710797452170,-500.0,0.00021917,2]
[319465732,1710797452180,-500.0,0.00021917,2]
[319465733,1710797452190,-500.0,0.00021917,2]
[319465734,1710797452200,-500.0,0.00021917,2]
[319465735,1710797452211,-1113.06,0.00021917,2]
[319465736,1710797452221,-500.0,0.00021917,2]
[319465737,1710797452231,-500.0,0.00021917,2]
[319465738,1710797452241,-786.2,0.00021917,2]
[319465739,1710797452251,-500.0,0.00021917,2]
[319465740,1710797452262,-1443.15,0.00021917,2]
[319465741,1710797452272,-1669.04,0.00021917,2]
[319465742,1710797452282,-500.0,0.00021917,2]
[319465743,1710797452292,-500.0,0.00021917,2]
[319465744,1710797452305,-1753.29,0.00021917,2]
[319465745,1710797452316,-500.0,0.00021917,2]
[319465746,1710797452326,-500.0,0.00021917,2]
[319465747,1710797452336,-500.0,0.00021917,2]
[319465748,1710797452346,-523.4942559,0.00021917,2]
[319465749,1710797452356,-500.0,0.00021917,2]
[319465750,1710797452366,-500.0,0.00021917,2]
[319465751,1710797452375,-500.0,0.00021917,2]
[319465752,1710797452386,-500.0,0.00021917,2]
[319465753,1710797452396,-646.97,0.00021917,2]
[319465754,1710797452406,-534.27,0.00021917,2]
[319465755,1710797452416,-500.0,0.00021917,2]
[319465756,1710797452425,-500.0,0.00021917,2]
[319465757,1710797452435,-500.0,0.00021917,2]
[319465758,1710797452447,-829.08,0.00021917,2]
[319465759,1710797452456,-2502.55,0.00021917,2]
[319465760,1710797452466,-500.0,0.00021917,2]
[319465761,1710797452476,-500.0,0.00021917,2]
[319465762,1710797452486,-500.0,0.00021917,2]
[319465763,1710797452496,-500.0,0.00021917,2]
[319465764,1710797452505,-500.0,0.00021917,2]
[319465765,1710797452516,-500.0,0.00021917,2]
[319465766,1710797452526,-500.0,0.00021917,2]
[319465767,1710797452535,-500.0,0.00021917,2]
[319465768,1710797452545,-776.93,0.00021917,2]
[319465769,1710797452558,-959.87,0.00021917,2]
[319465770,1710797452568,-3563.77,0.00021917,2]
[319465771,1710797452577,-500.0,0.00021917,2]
[319465772,1710797452587,-572.99568191,0.00021917,2]
[319465773,1710797452596,-1511.09,0.00021917,2]
[319465774,1710797452605,-151.0,0.00021917,2]
[319465775,1710797452615,-667.42,0.00021917,2]
[319465776,1710797452624,-500.0,0.00021917,2]
[319465777,1710797452633,-170.928333,0.00021917,2]
[319465778,1710797452642,-500.0,0.00021917,20]
[319465779,1710797452651,-1491.01,0.00021917,2]
[319465780,1710797452660,-500.0,0.00021917,2]
[319465781,1710797452670,-500.0,0.00021917,2]
[319465782,1710797452679,-500.0,0.00021917,2]
[319465783,1710797452688,-155.540246,0.00021917,2]
[319465784,1710797452698,-818.11,0.00021917,2]
[319465785,1710797452707,-500.0,0.00021917,2]
[319465786,1710797452717,-2951.44,0.00021917,2]
[319465787,1710797452726,-34.8504501,0.00021917,2]
[319465788,1710797453574,-125.47214238,0.00021917,2]
[319465789,1710797453583,-624.19784141,0.00021917,2]
[319465790,1710797453611,-594.6336,0.00021917,2]
[319465791,1710797453627,-251.10855859,0.00021917,2]
[319465792,1710797453636,-107.90083813,0.00021917,2]
[319465793,1710797453665,-392.09916187,0.00021917,2]
[319465794,1710797453674,-500.0,0.00021917,2]
[319465795,1710797453683,-1002.39,0.00021917,2]
[319465796,1710797453692,-500.0,0.00021917,2]
[319465797,1710797453700,-500.0,0.00021917,2]
[319465798,1710797453709,-517.55,0.00021917,2]
[319465799,1710797453718,-500.0,0.00021917,2]
[319465800,1710797453727,-500.0,0.00021917,2]
[319465801,1710797453736,-1370.07,0.00021917,2]
[319465802,1710797453745,-388.63043504,0.00021917,2]
[319465803,1710797453754,-580.86537022,0.00021917,2]
[319465804,1710797453763,-1144.03,0.00021917,2]
[319465805,1710797453773,-500.0,0.00021917,2]
[319465806,1710797453783,-500.0,0.00021917,2]
[319465807,1710797453793,-500.0,0.00021917,2]
[319465808,1710797453803,-500.0,0.00021917,2]
[319465809,1710797453813,-1135.25,0.00021917,2]
[319465810,1710797453823,-1986.89,0.00021917,2]
[319465811,1710797453832,-500.0,0.00021917,2]
[319465812,1710797453841,-1146.81176371,0.00021917,2]
[319465817,1710798549125,-479.07784651,0.00016338,2]
[319465818,1710798570104,-173.76,0.00016338,2]
[319465819,1710798573121,-310.55977222,0.00016338,2]
[319465820,1710798573142,-2218.62732778,0.00016438,2]
[319465821,1710798574123,-423.85402919,0.00016438,2]
[319465822,1710798574145,-711.91597081,0.00017,3]
[319465839,1710798631654,-38.08402919,0.00017,3]
[319465840,1710798631664,-150.0,0.00017,2]
[319465841,1710798631673,-150.0,0.00017,2]
[319465842,1710798631682,-288.79567231,0.00017,2]
[319465843,1710798631691,-156.58007557,0.000171,2]
[319465844,1710798631701,-862.23680387,0.000172,2]
[319465845,1710798631729,-2042.76319613,0.000172,2]
[319465846,1710798631738,-1287.28680387,0.00017878,2]
[319465892,1710798637476,-212.71319613,0.00017878,2]
[319465893,1710798637492,-415.74,0.00017948,2]
[319465894,1710798637507,-150.0,0.00018411,2]
[319465895,1710798637522,-150.0,0.00018424,2]
[319465896,1710798637538,-1500.0,0.00018426,2]
[319465897,1710798637552,-543.95291501,0.00018455,2]
[319465898,1710798637567,-1500.0,0.00018974,2]
[319465899,1710798637581,-499.99,0.00018974,2]
[319465900,1710798637596,-637.6495528,0.00019,3]
[319465901,1710798637614,-162.3504472,0.00019,3]
[319465902,1710798637630,-1500.0,0.00019522,2]
[319465903,1710798637644,-746.33665963,0.00019708,2]
[319465904,1710798637658,-500.0,0.00019724,2]
[319465905,1710798637674,-859.53,0.00019737,2]
[319465906,1710798637689,-1861.09,0.00019742,2]
[319465907,1710798637703,-550.52,0.00019748,2]
[319465908,1710798637718,-173.52,0.00019752,2]
[319465909,1710798637734,-170.28,0.00019752,2]
[319465910,1710798637749,-250.0,0.00019765,2]
[319465911,1710798637764,-215.47,0.00019767,2]
[319465912,1710798637779,-725.37,0.00019771,2]
[319465913,1710798637794,-154.56106172,0.00019803,2]
[319465914,1710798637810,-250.0,0.00019809,2]
[319465915,1710798637825,-157.14,0.0001981,2]